bitfinex/quotes_SOLUSD_20250815
["timestamp","ask_amount","ask_price","bid_price","bid_amount"]
[1755219736441,5.70549175,192.77,192.75,5.18806744]
[1755219737046,5.70549175,192.77,192.73,5.18860582]
[1755219737352,6.38549175,192.76,192.73,5.18860582]
[1755219737564,5.70549175,192.75,192.73,5.18860582]
[1755219738159,6.38549175,192.74,192.72,37.08]
[1755219738466,5.70549175,192.73,192.72,42.26887505]
[1755219738632,5.70549175,192.74,192.72,42.26887505]
[1755219738835,5.70549175,192.74,192.72,37.08]
[1755219739062,5.70549175,192.73,192.72,37.08]
[1755219739766,5.70549175,192.74,192.72,42.26887505]
[1755219740053,5.70549175,192.76,192.73,0.68]
[1755219740652,5.70549175,192.74,192.72,42.26881998]
[1755219740861,6.38549175,192.73,192.72,37.08]
[1755219741037,6.38549175,192.73,192.71,5.18912361]
[1755219741235,5.70549175,192.73,192.71,5.18912361]
[1755219741845,0.68,192.76,192.71,5.86912361]
[1755219742043,5.70549175,192.75,192.72,0.68]
[1755219742548,5.70549175,192.75,192.7,5.86941359]
[1755219742872,5.70549175,192.75,192.71,0.68]
[1755219743166,5.70549175,192.75,192.72,0.68]
[1755219743370,5.70549175,192.75,192.7,5.18941359]
[1755219743539,5.70549175,192.73,192.7,5.18941359]
[1755219743934,0.68,192.74,192.7,5.18941359]
[1755219744154,5.70549175,192.73,192.7,5.86941359]
[1755219745971,5.70549175,192.74,192.7,5.18941359]
[1755219746135,5.70549175,192.74,192.71,0.68]
[1755219746343,5.70549175,192.74,192.72,0.68]
[1755219746834,0.68,192.76,192.7,5.86941359]
[1755219747041,5.70549175,192.74,192.7,5.86941359]
[1755219747244,5.70549175,192.72,192.7,5.18941359]
[1755219747554,5.70549175,192.74,192.7,5.18941359]
[1755219747750,5.70549175,192.74,192.7,5.86941359]
[1755219747951,5.70549175,192.73,192.7,5.86941359]
[1755219748261,26.0,192.78,192.7,5.18941359]
[1755219748468,5.70549175,192.75,192.71,0.68]
[1755219748639,5.70549175,192.75,192.72,0.68]
[1755219749064,5.70549175,192.74,192.7,5.86941359]
[1755219749260,26.68,192.77,192.71,0.68]
[1755219749567,5.70549175,192.75,192.72,5.18887505]
[1755219749862,5.70549175,192.74,192.72,5.18887505]
[1755219750176,6.38549175,192.73,192.7,5.18941359]
[1755219750932,6.41549175,192.72,192.69,42.26964095]
[1755219751949,6.41549175,192.71,192.69,42.26964095]
[1755219752260,0.71,192.7,192.69,5.18964095]
[1755219752469,6.41549175,192.71,192.69,5.18964095]
[1755219752964,6.41549175,192.7,192.68,0.03]
[1755219753172,5.70549175,192.69,192.68,0.03]
[1755219753340,6.41549175,192.69,192.68,0.03]
[1755219753940,21.52170732,192.69,192.68,0.03]
[1755219754944,26.71139023,192.69,192.68,0.03]
[1755219755440,56.71139023,192.69,192.68,0.03]
[1755219756454,51.52170732,192.69,192.68,0.03]
[1755219756876,56.71139023,192.69,192.68,0.03]
[1755219758164,36.41549175,192.69,192.68,0.03]
[1755219758378,35.70549175,192.69,192.68,0.03]
[1755219759560,36.41549175,192.69,192.68,0.03]
[1755219762073,6.41549175,192.69,192.68,0.03]
[1755219762787,36.41549175,192.69,192.68,0.03]
[1755219763787,56.71139023,192.69,192.68,0.03]
[1755219765497,93.79139023,192.69,192.68,0.03]
[1755219767562,88.60170732,192.69,192.68,0.03]
[1755219769088,93.79139023,192.69,192.68,0.03]
[1755219769591,97.23135396,192.69,192.68,0.03]
[1755219771990,67.23135396,192.69,192.68,0.03]
[1755219772197,15.10621557,192.67,192.66,0.03]
[1755219772398,67.0371628,192.67,192.66,0.03]
[1755219772579,67.03431965,192.67,192.66,0.03]
[1755219772773,62.0388279,192.67,192.66,0.03]
[1755219773886,67.22904952,192.67,192.66,0.03]
[1755219774787,97.22904952,192.67,192.66,0.03]
[1755219776183,91.3288279,192.67,192.66,0.03]
[1755219776487,50.81170732,192.67,192.66,0.03]
[1755219776688,113.89170732,192.67,192.66,0.03]
[1755219777501,30.0,192.67,192.66,0.71]
[1755219777790,42.78549175,192.7,192.66,0.71]
[1755219777966,5.70549175,192.69,192.66,0.71]
[1755219778165,5.70549175,192.69,192.66,5.90028778]
[1755219778495,5.70549175,192.68,192.67,0.68]
[1755219779373,5.70549175,192.68,192.66,0.03]
[1755219779596,5.70549175,192.68,192.66,0.71]
[1755219779889,5.70549175,192.68,192.66,0.03]
[1755219780089,5.70549175,192.68,192.67,0.68]
[1755219780788,5.70549175,192.69,192.67,0.68]
[1755219780985,0.06,192.74,192.67,11.57562568]
[1755219781301,5.70549175,192.73,192.68,0.69]
[1755219781590,5.70549175,192.7,192.68,0.69]
[1755219781774,5.70549175,192.69,192.66,0.03]
[1755219781974,5.70549175,192.67,192.66,0.03]
[1755219782177,5.70549175,192.68,192.67,0.69]
[1755219782380,5.70549175,192.7,192.68,0.69]
[1755219784485,15.10621557,192.71,192.69,0.69]
[1755219784486,31.70549175,192.71,192.69,0.69]
[1755219784682,31.70549175,192.71,192.67,5.19022162]
[1755219784683,31.70549175,192.71,192.7,0.69]
[1755219784889,31.70549175,192.71,192.7,25.69]
[1755219785080,31.70549175,192.71,192.7,25.0]
[1755219786000,46.81170732,192.71,192.7,25.0]
[1755219786378,76.81170732,192.71,192.7,25.0]
[1755219787071,77.52170732,192.71,192.7,25.0]
[1755219787491,71.10621557,192.71,192.7,25.0]
[1755219787702,61.70549175,192.71,192.7,25.0]
[1755219787889,31.70549175,192.71,192.7,25.69]
[1755219788593,31.70549175,192.71,192.7,25.0]
[1755219789693,5.70549175,192.71,192.7,25.0]
[1755219789895,0.06,192.74,192.7,25.69]
[1755219790081,0.06,192.74,192.73,5.70549175]
[1755219790286,0.06,192.74,192.73,10.89409757]
[1755219790486,0.06,192.74,192.73,5.87860582]
[1755219792301,0.06,192.74,192.73,11.58409757]
[1755219793883,0.06,192.74,192.73,5.87860582]
[1755219794685,0.06,192.74,192.73,11.58409757]
[1755219795990,0.06,192.74,192.73,5.87860582]
[1755219796506,0.06,192.74,192.73,5.18860582]
[1755219796702,5.76549175,192.74,192.71,5.87887742]
[1755219796905,5.70549175,192.72,192.7,62.06]
[1755219797729,5.70549175,192.72,192.7,67.2493855]
[1755219797912,5.76549175,192.74,192.7,67.2493855]
[1755219798086,5.76549175,192.74,192.71,0.69]
[1755219798286,0.06,192.74,192.71,0.69]
[1755219798516,5.76549175,192.74,192.71,5.8789408]
[1755219798905,5.76549175,192.74,192.71,5.1889408]
[1755219799915,5.76549175,192.74,192.71,5.8789408]
[1755219800814,5.70549175,192.73,192.7,62.06]
[1755219800995,5.70549175,192.72,192.7,67.24937283]
[1755219801197,5.70549175,192.71,192.7,25.0]
[1755219801405,6.41549175,192.71,192.7,25.0]
[1755219802089,5.70549175,192.71,192.7,25.0]
[1755219802517,6.41549175,192.71,192.7,25.0]
[1755219803919,21.52170732,192.71,192.7,25.0]
[1755219805396,51.52170732,192.71,192.7,25.0]
[1755219806724,50.81170732,192.71,192.7,25.0]
[1755219806917,35.70549175,192.71,192.7,25.0]
[1755219807225,5.70549175,192.71,192.7,25.0]
[1755219809126,6.41549175,192.71,192.7,25.0]
[1755219809921,5.70549175,192.71,192.7,25.0]
[1755219810125,6.41549175,192.71,192.7,25.0]
[1755219810306,5.70549175,192.71,192.7,25.0]
[1755219811815,6.39549175,192.71,192.7,25.0]
[1755219812822,5.70549175,192.71,192.7,25.0]
[1755219813823,20.81170732,192.71,192.7,25.0]
[1755219813995,26.69085163,192.71,192.7,25.0]
[1755219814404,21.50170732,192.71,192.7,25.0]
[1755219814604,50.81170732,192.71,192.7,25.0]
[1755219815215,45.79621557,192.71,192.7,25.0]
[1755219815403,51.50170732,192.71,192.7,25.0]
[1755219815802,50.81170732,192.71,192.7,25.0]
[1755219816020,20.81170732,192.71,192.7,25.0]
[1755219816523,5.70549175,192.71,192.7,25.71]
[1755219817300,5.70549175,192.71,192.7,25.0]
[1755219818923,21.50170732,192.71,192.7,25.0]
[1755219819317,30.14815084,192.71,192.7,25.0]
[1755219820113,24.26900653,192.71,192.7,25.0]
[1755219820320,24.95900653,192.71,192.7,25.0]
[1755219821931,30.14815084,192.71,192.7,25.0]
[1755219822512,71.03686415,192.71,192.7,25.0]
[1755219823030,101.03686415,192.71,192.7,25.0]
[1755219823208,41.10621557,192.69,192.68,0.03]
[1755219823414,50.26900653,192.69,192.68,0.03]
[1755219823816,15.10621557,192.67,192.66,0.03]
[1755219824036,70.86222068,192.67,192.66,0.03]
[1755219824332,71.55222068,192.67,192.66,0.03]
[1755219824517,67.70449828,192.67,192.66,0.03]
[1755219824838,97.70449828,192.67,192.66,0.03]
[1755219825018,102.8947199,192.67,192.66,0.03]
[1755219825333,97.18922815,192.67,192.66,0.03]
[1755219826126,102.8947199,192.67,192.66,0.03]
[1755219827544,15.10621557,192.66,192.65,0.03]
[1755219827701,60.66449828,192.66,192.65,0.03]
[1755219828024,60.66449828,192.66,192.56,42.94314462]
[1755219828025,15.10621557,192.62,192.56,42.94314462]
[1755219828227,5.70549175,192.58,192.56,42.94314462]
[1755219828447,15.10621557,192.62,192.56,42.94314462]
[1755219828448,5.70549175,192.59,192.57,0.71]
[1755219828803,5.70549175,192.59,192.56,5.19314462]
[1755219829106,5.70549175,192.58,192.53,5.19399574]
[1755219829617,5.70549175,192.58,192.54,0.71]
[1755219829818,5.70549175,192.59,192.54,0.71]
[1755219831044,5.70549175,192.59,192.55,5.19345624]
[1755219831208,5.70549175,192.59,192.56,0.71]
[1755219832120,5.70549175,192.59,192.57,5.90279378]
[1755219832629,5.70549175,192.58,192.56,5.19315468]
[1755219832834,5.70549175,192.58,192.56,5.90315468]
[1755219833823,5.70549175,192.57,192.53,5.19399574]
[1755219834030,5.70549175,192.57,192.54,0.71]
[1755219834215,5.70549175,192.57,192.55,0.71]
[1755219834533,5.70549175,192.57,192.56,0.71]
[1755219834734,20.29780273,192.62,192.56,0.71]
[1755219834735,5.70549175,192.59,192.56,0.71]
[1755219834919,5.70549175,192.62,192.56,6.41549175]
[1755219835128,26.0,192.62,192.57,0.71]
[1755219835438,31.70549175,192.62,192.57,0.71]
[1755219835817,31.70549175,192.62,192.58,5.19264721]
[1755219836137,5.70549175,192.61,192.59,0.71]
[1755219837139,5.70549175,192.6,192.59,0.71]
[1755219837432,26.0,192.62,192.58,5.19264721]
[1755219837633,5.70549175,192.61,192.59,0.71]
[1755219837837,5.70549175,192.61,192.59,5.90218144]
[1755219839043,5.70549175,192.6,192.59,5.19218144]
[1755219839253,5.70549175,192.6,192.57,5.90265382]
[1755219840245,31.70549175,192.62,192.58,0.71]
[1755219840462,0.06,192.66,192.58,6.41549175]
[1755219840619,0.06,192.66,192.65,5.70549175]
[1755219840815,0.06,192.66,192.63,5.70549175]
[1755219841013,5.70549175,192.64,192.6,0.66]
[1755219841224,5.70549175,192.62,192.6,0.66]
[1755219841425,5.70549175,192.61,192.57,68.89265382]
[1755219841636,5.70549175,192.61,192.58,0.66]
[1755219841910,5.70549175,192.59,192.57,37.04]
[1755219842123,5.70549175,192.6,192.57,42.23285083]
[1755219842322,5.70549175,192.6,192.57,42.89285083]
[1755219843047,5.70549175,192.58,192.56,5.22315168]
[1755219843442,5.70549175,192.6,192.57,0.66]
[1755219843943,5.70549175,192.58,192.56,5.22315168]
[1755219844157,5.70549175,192.58,192.56,0.03]
[1755219844661,0.66,192.6,192.56,0.03]
[1755219844831,5.70549175,192.59,192.56,0.03]
[1755219845025,5.70549175,192.59,192.57,0.66]
[1755219845847,5.70549175,192.59,192.56,0.03]
[1755219846443,0.66,192.61,192.56,0.03]
[1755219846650,5.70549175,192.58,192.56,0.03]
[1755219847049,6.36549175,192.58,192.56,0.03]
[1755219847455,6.36549175,192.57,192.56,0.03]
[1755219847645,21.47170732,192.57,192.56,0.03]
[1755219847943,24.92330165,192.57,192.56,0.03]
[1755219848372,41.10621557,192.53,192.47,5.19560258]
[1755219848562,5.70549175,192.49,192.47,5.19560258]
[1755219848761,5.70549175,192.49,192.47,5.85560258]
[1755219848972,5.70549175,192.5,192.48,0.66]
[1755219849640,5.70549175,192.52,192.49,0.66]
[1755219850348,5.70549175,192.51,192.49,0.66]
[1755219850546,5.70549175,192.51,192.48,5.19530758]
[1755219850947,5.70549175,192.51,192.48,5.85530758]
[1755219851565,0.66,192.59,192.5,5.70549175]
[1755219851865,5.70549175,192.57,192.51,37.7]
[1755219852048,5.70549175,192.56,192.51,37.7]
[1755219852380,5.70549175,192.55,192.52,0.66]
[1755219852771,5.70549175,192.56,192.52,0.66]
[1755219853054,31.70549175,192.57,192.53,0.66]
[1755219853265,5.70549175,192.56,192.53,0.66]
[1755219853467,5.70549175,192.56,192.53,5.85392731]
[1755219853964,5.70549175,192.56,192.53,5.19392731]
[1755219854477,5.70549175,192.56,192.53,5.85392731]
[1755219854852,31.70549175,192.57,192.53,5.85392731]
[1755219855060,5.70549175,192.56,192.53,5.85392731]
[1755219856672,26.0,192.57,192.53,5.19392731]
[1755219856963,6.36549175,192.6,192.54,6.36549175]
[1755219857273,6.36549175,192.6,192.55,0.66]
[1755219857783,6.36549175,192.6,192.56,5.19318653]
[1755219857943,0.66,192.6,192.56,5.85318653]
[1755219859046,6.36549175,192.6,192.56,5.85318653]
[1755219859656,41.10621557,192.62,192.57,0.66]
[1755219859657,26.0,192.62,192.57,0.66]
[1755219859862,0.72,192.66,192.59,5.70549175]
[1755219860063,0.72,192.66,192.6,0.66]
[1755219860064,5.70549175,192.64,192.6,0.66]
[1755219860244,6.36549175,192.64,192.6,0.66]
[1755219860450,6.36549175,192.64,192.58,6.36549175]
[1755219860868,5.70549175,192.65,192.59,6.36549175]
[1755219861068,0.66,192.64,192.6,5.19210799]
[1755219861259,6.42549175,192.64,192.6,5.19210799]
[1755219861457,6.42549175,192.64,192.6,5.85210799]
[1755219861656,5.70549175,192.61,192.57,5.19291686]
[1755219861857,5.70549175,192.58,192.56,5.19315886]
[1755219862661,6.36549175,192.57,192.55,37.04]
[1755219863168,5.70549175,192.58,192.55,42.89331985]
[1755219865178,5.70549175,192.57,192.55,42.23331985]
[1755219865974,5.70549175,192.57,192.55,42.89331985]
[1755219866581,0.66,192.56,192.55,37.04]
[1755219866750,5.70549175,192.56,192.54,5.19367039]
[1755219867257,5.70549175,192.56,192.53,5.19399574]
[1755219867461,5.70549175,192.58,192.54,0.66]
[1755219867666,5.70549175,192.59,192.55,0.66]
[1755219867850,5.70549175,192.59,192.56,0.66]
[1755219868359,5.70549175,192.59,192.54,0.66]
[1755219868556,6.36549175,192.59,192.54,0.66]
[1755219868769,5.70549175,192.58,192.54,0.66]
[1755219869079,6.36549175,192.58,192.54,0.66]
[1755219871283,6.36549175,192.58,192.55,5.19345624]
[1755219872281,5.70549175,192.57,192.55,5.19345624]
[1755219872485,6.36549175,192.57,192.55,5.19345624]
[1755219873554,6.36549175,192.57,192.53,5.19399574]
[1755219873995,6.36549175,192.57,192.53,5.89399574]
[1755219876987,6.36549175,192.56,192.53,5.19399574]
[1755219879080,5.70549175,192.54,192.52,0.03]
[1755219879278,5.70549175,192.53,192.52,0.03]
[1755219879481,6.36549175,192.53,192.52,0.03]
[1755219882158,21.47170732,192.53,192.52,0.03]
[1755219896080,24.93639114,192.53,192.52,0.03]
[1755219896281,30.13038688,192.53,192.52,0.03]
[1755219897197,60.13038688,192.53,192.52,0.03]
[1755219897900,97.15038688,192.53,192.52,0.03]
[1755219900675,48.57089939,192.53,192.52,0.03]
[1755219900876,5.76549175,192.57,192.52,0.7]
[1755219901096,31.70549175,192.56,192.52,0.03]
[1755219901299,5.70549175,192.55,192.53,0.67]
[1755219901503,5.70549175,192.54,192.52,0.03]
[1755219901683,5.70549175,192.53,192.52,0.03]
[1755219901887,20.81170732,192.53,192.52,0.03]
[1755219902087,21.53170732,192.53,192.52,0.03]
[1755219902773,20.81170732,192.53,192.52,0.03]
[1755219903474,26.0,192.54,192.52,0.7]
[1755219903676,31.70549175,192.54,192.53,0.67]
[1755219903908,31.70549175,192.54,192.52,0.03]
[1755219904204,31.70549175,192.53,192.52,0.03]
[1755219904711,31.70549175,192.53,192.52,0.7]
[1755219905200,26.0,192.53,192.52,0.7]
[1755219905588,0.06,192.57,192.52,5.89418861]
[1755219905799,0.06,192.57,192.53,37.67]
[1755219906090,0.06,192.57,192.56,5.70549175]
[1755219906509,0.06,192.57,192.56,6.37549175]
[1755219906721,5.76549175,192.57,192.54,0.67]
[1755219906926,5.70549175,192.55,192.52,5.89418861]
[1755219907096,5.70549175,192.54,192.52,5.89418861]
[1755219907309,5.70549175,192.55,192.53,0.67]
[1755219907628,5.70549175,192.55,192.53,5.86396632]
[1755219908093,5.70549175,192.54,192.52,0.03]
[1755219908423,5.70549175,192.53,192.52,0.03]
[1755219908599,21.53170732,192.53,192.52,0.03]
[1755219909828,51.53170732,192.53,192.52,0.03]
[1755219911229,56.72570306,192.53,192.52,0.03]
[1755219911526,51.53170732,192.53,192.52,0.03]
[1755219911705,30.0,192.53,192.52,0.7]
[1755219911916,31.70549175,192.54,192.52,0.03]
[1755219912309,31.70549175,192.53,192.52,0.03]
[1755219912535,32.42549175,192.53,192.52,0.03]
[1755219913302,47.53170732,192.53,192.52,0.03]
[1755219913521,29.47447233,192.53,192.52,0.03]
[1755219913699,29.47447233,192.53,192.52,0.7]
[1755219913700,65.17996408,192.53,192.52,0.7]
[1755219914021,39.17996408,192.53,192.52,0.03]
[1755219914207,3.47447233,192.53,192.52,0.7]
[1755219914998,9.17996408,192.53,192.52,0.7]
[1755219915222,9.17996408,192.53,192.52,0.03]
[1755219915423,9.89996408,192.53,192.52,0.03]
[1755219915631,56.20017539,192.53,192.52,0.03]
[1755219916531,93.20017539,192.53,192.52,0.03]
[1755219917234,123.20017539,192.53,192.52,0.03]
[1755219918016,118.00617965,192.53,192.52,0.03]
[1755219918221,65.17996408,192.53,192.52,0.03]
[1755219920432,81.00617965,192.53,192.52,0.03]
[1755219921448,33.47447233,192.53,192.52,0.7]
[1755219921637,30.0,192.53,192.52,6.40549175]
[1755219921843,0.06,192.56,192.52,6.40549175]
[1755219922013,0.06,192.56,192.54,5.70549175]
[1755219922212,0.06,192.56,192.53,5.86372634]
[1755219922426,0.06,192.56,192.54,0.67]
[1755219922914,0.06,192.56,192.53,5.19372634]
[1755219923113,0.06,192.56,192.55,0.67]
[1755219923448,3.5437606,192.56,192.55,0.67]
[1755219924843,9.96925235,192.56,192.52,0.03]
[1755219925050,9.18925235,192.55,192.52,5.22421269]
[1755219925250,5.76549175,192.56,192.53,0.67]
[1755219925423,0.06,192.56,192.52,5.22421269]
[1755219925733,0.06,192.56,192.54,0.67]
[1755219926132,0.06,192.56,192.55,0.67]
[1755219926450,3.54350497,192.56,192.55,0.67]
[1755219926616,3.54350497,192.56,192.55,5.86345624]
[1755219927334,3.54350497,192.56,192.53,0.67]
[1755219927530,0.06,192.56,192.54,0.67]
[1755219927845,0.06,192.56,192.55,0.67]
[1755219928039,3.54306638,192.56,192.55,0.67]
[1755219928415,0.06,192.56,192.55,0.67]
[1755219928610,0.06,192.56,192.55,11.56894799]
[1755219930227,0.06,192.56,192.55,5.86345624]
[1755219930428,0.06,192.56,192.55,11.56894799]
[1755219930816,0.06,192.56,192.55,5.86345624]
[1755219933033,0.06,192.56,192.55,11.56894799]
[1755219933846,0.06,192.56,192.55,5.86345624]
[1755219934025,0.06,192.56,192.55,11.56894799]
[1755219934545,0.06,192.56,192.55,5.86345624]
[1755219935056,0.06,192.56,192.55,11.56894799]
[1755219936853,0.06,192.56,192.55,5.86345624]
[1755219937236,0.06,192.56,192.55,11.56894799]
[1755219939658,0.06,192.56,192.55,5.19345624]
[1755219940069,0.06,192.56,192.55,11.58894799]
[1755219942166,1e-08,192.56,192.55,11.58894799]
[1755219942340,0.06,192.6,192.58,26.0]
[1755219942663,0.06,192.6,192.59,6.2247295]
[1755219942892,0.06,192.6,192.59,6.9147295]
[1755219943244,0.06,192.6,192.58,68.94549175]
[1755219943552,0.06,192.6,192.58,26.0]
[1755219943743,0.06,192.6,192.58,68.94549175]
[1755219943946,0.06,192.6,192.59,0.69]
[1755219944158,0.06,192.6,192.59,6.39549175]
[1755219944366,0.06,192.6,192.59,5.88237758]
[1755219944559,0.06,192.6,192.59,12.10710708]
[1755219944961,0.06,192.6,192.59,11.58786933]
[1755219946565,0.75,192.6,192.59,42.55237758]
[1755219946974,0.06,192.6,192.59,42.55237758]
[1755219947370,0.75,192.6,192.59,42.55237758]
[1755219949985,0.06,192.6,192.59,42.55237758]
[1755219950684,0.06,192.6,192.59,37.36]
[1755219951661,0.06,192.6,192.59,43.75549175]
[1755219951964,0.06,192.6,192.59,48.94786933]
[1755219953687,0.06,192.61,192.59,48.94786933]
[1755219953857,0.06,192.61,192.59,48.25786933]
[1755219954383,0.06,192.61,192.59,42.55237758]
[1755219954687,0.75,192.61,192.59,42.55237758]
[1755219956690,0.06,192.6,192.59,42.55237758]
[1755219956871,0.75,192.6,192.59,37.22]
[1755219957972,6.45549175,192.6,192.58,0.03]
[1755219958285,5.70549175,192.59,192.58,0.03]
[1755219958491,6.39549175,192.59,192.58,0.03]
[1755219958873,21.50170732,192.59,192.58,0.03]
[1755219959080,15.79621557,192.59,192.58,0.03]
[1755219959383,21.50170732,192.59,192.58,0.03]
[1755219960086,26.6940849,192.59,192.58,0.03]
[1755219960681,30.16930233,192.59,192.58,0.03]
[1755219962095,5.19291686,192.57,192.54,0.03]
[1755219962287,20.81170732,192.55,192.54,0.03]
[1755219962790,21.51170732,192.55,192.54,0.03]
[1755219963170,56.70516356,192.55,192.54,0.03]
[1755219964572,60.18152883,192.55,192.54,0.03]
[1755219964785,49.28258084,192.55,192.54,0.03]
[1755219964983,36.40549175,192.55,192.54,0.03]
[1755219965182,35.70549175,192.55,192.54,0.03]
[1755219965568,30.0,192.55,192.54,0.03]
[1755219965767,30.0,192.55,192.54,0.7]
[1755219965969,5.70549175,192.57,192.54,0.03]
[1755219966379,6.40549175,192.57,192.54,0.03]
[1755219967283,5.70549175,192.57,192.54,0.7]
[1755219967503,5.70549175,192.58,192.54,0.7]
[1755219968174,0.06,192.6,192.55,0.67]
[1755219968382,0.06,192.6,192.56,5.19318653]
[1755219968564,0.06,192.6,192.57,0.67]
[1755219968770,0.06,192.6,192.58,5.70549175]
[1755219968990,0.06,192.6,192.59,0.67]
[1755219970295,0.06,192.6,192.59,11.56786933]
[1755219970991,0.06,192.61,192.59,12.08710708]
[1755219971198,0.06,192.61,192.6,6.37549175]
[1755219971709,1e-08,192.61,192.6,6.37549175]
[1755219972304,1e-08,192.63,192.61,46.29805399]
[1755219972508,1e-08,192.7,192.65,26.0]
[1755219972804,1e-08,192.72,192.69,31.70549175]
[1755219973013,0.06,192.75,192.74,26.0]
[1755219973169,1e-08,192.75,192.74,68.88549175]
[1755219973374,0.06,192.78,192.77,26.0]
[1755219973601,6.40549175,192.87,192.8,26.0]
[1755219973810,5.70549175,192.84,192.8,37.18]
[1755219973975,6.40549175,192.84,192.8,37.18]
[1755219974703,9.50629241,192.84,192.8,37.18]
[1755219974872,0.7,192.84,192.8,37.18]
[1755219975075,9.50629241,192.84,192.8,37.18]
[1755219976483,8.80629241,192.81,192.77,26.0]
[1755219976680,8.80629241,192.79,192.78,37.14]
[1755219978095,9.50629241,192.84,192.78,51.80344849]
[1755219978605,8.80629241,192.83,192.78,42.32715608]
[1755219979104,0.76,192.82,192.78,42.32715608]
[1755219979287,0.06,192.82,192.78,42.32715608]
[1755219979489,0.06,192.82,192.78,51.80344849]
[1755219980004,9.56629241,192.82,192.78,37.14]
[1755219981301,0.76,192.82,192.78,42.32722908]
[1755219981507,0.06,192.82,192.78,42.99722908]
[1755219982388,0.06,192.82,192.79,0.67]
[1755219982808,0.06,192.82,192.8,0.67]
[1755219982997,0.06,192.82,192.81,37.12]
[1755219985488,8.86629241,192.82,192.81,37.12]
[1755219986231,0.06,192.82,192.81,42.97645298]
[1755219986394,0.06,192.82,192.81,42.30645298]
[1755219987692,0.06,192.82,192.81,37.12]
[1755219987912,0.06,192.82,192.81,42.30645298]
[1755219989024,0.06,192.82,192.74,0.03]
[1755219989025,9.56629241,192.82,192.74,0.03]
[1755219989235,0.7,192.81,192.75,37.1]
[1755219989440,8.80629241,192.78,192.75,37.1]
[1755219989820,8.80629241,192.78,192.75,42.28804609]
[1755219990012,8.80629241,192.77,192.75,42.28804609]
[1755219990411,8.80629241,192.79,192.75,42.98804609]
[1755219990750,8.80629241,192.78,192.75,42.98804609]
[1755219991741,8.80629241,192.78,192.76,37.08]
[1755219991950,8.80629241,192.77,192.76,37.08]
[1755219992835,8.80629241,192.77,192.75,5.2180263]
[1755219993039,8.80629241,192.77,192.76,37.08]
[1755219993338,8.80629241,192.77,192.75,5.2180263]
[1755219993542,8.80629241,192.77,192.76,37.08]
[1755219994032,9.48629241,192.77,192.75,0.03]
[1755219994212,8.80629241,192.76,192.75,0.03]
[1755219994410,9.48629241,192.76,192.75,0.03]
[1755219994639,9.546292,192.81,192.75,5.86806744]
[1755219994818,8.80629241,192.79,192.76,37.06]
[1755219995141,8.80629241,192.79,192.76,42.8975356]
[1755219995441,8.80629241,192.8,192.76,42.8975356]
[1755219996451,0.06,192.81,192.77,0.65]
[1755219996616,0.06,192.81,192.78,37.06]
[1755219996824,0.06,192.81,192.78,37.71]
[1755219997023,0.06,192.81,192.8,5.18672199]
[1755219997234,0.06,192.81,192.8,42.22672199]
[1755219997552,0.06,192.81,192.8,42.87672199]
[1755219997728,0.06,192.81,192.8,48.60154306]
[1755219998760,1e-08,192.81,192.8,48.60154306]
[1755219998928,1e-08,192.81,192.8,42.24672199]
[1755219999440,1e-08,192.81,192.8,48.62154306]
[1755220001739,1e-08,192.81,192.8,5.18672199]
[1755220001937,6.40482108,192.81,192.8,37.08]
[1755220002138,1e-08,192.81,192.8,37.08]
[1755220002543,1e-08,192.81,192.8,37.73]
[1755220003749,1e-08,192.81,192.8,42.26672199]
[1755220004929,1e-08,192.81,192.8,42.91672199]
[1755220007149,1e-08,192.81,192.8,42.26672199]
[1755220008039,0.06,192.82,192.8,42.26672199]